Cogmind - Beta 15 @@@ ROGUE MODE // 2025.05.21 @ 11:25:38 // Winter2019/RPGLIKE Player: ASS BUSTER Result: Destroyed by BT-218(j) with Overtuned Pulse Rifle Performance ------------- Evolutions (0) 0 Regions Visited (4) 800 Robots Destroyed (130) 650 Value Destroyed (4954) 4954 Prototype IDs (17) 340 Alien Tech Used (0) 0 Bonus (825) 825 TOTAL SCORE: 7569 Bonus ------- High Alert Combat Kills 54 Registered with UFD 300 Met Optimus in HQ 500 Friendly Fire -29 Cogmind --------- Core Integrity 0/950 Matter 300/300 Energy 265/265 System Corruption 9% Temperature Hot (288) Movement Core (100) Ox1 Location -8/Scraptown Parts ------- > --- POWER (1+3) ------ Reinforced Ion Engine > --- PROPULSION (2) --- (None) > --- UTILITY (4) ------ Scrap Suit Power Bank > --- WEAPON (3) ------- Gauss Rifle Heavy Battle Rifle Heavy Battle Rifle > --- INVENTORY (0) ---- (None) Peak State ------------ > --- POWER ------------ Reinforced Ion Engine > --- PROPULSION ------- Improved Hover Unit Improved Hover Unit > --- UTILITY ---------- Scrap Suit ECM Suite Power Bank > --- WEAPON ----------- Overtuned Pulse Rifle Heavy Battle Rifle Heavy Battle Rifle > --- INVENTORY -------- (None) [Rating: 35] Favorites ----------- Power Reinforced Ion Engine Engine Reinforced Ion Engine Propulsion Improved Hover Unit Wheel Wheel Hover Unit Improved Hover Unit Flight Unit Flight Unit Utility ECM Suite Device ECM Suite Processor Signal Interpreter Protection Scrap Shield Weapon Subdweller Beam Cannon Energy Gun Heavy Riot Gun Energy Cannon Subdweller Beam Cannon Ballistic Gun Heavy Battle Rifle Ballistic Cannon Light Cannon Launcher Grenade Launcher Build | -11 -10 -10 -8 -8 ------- Run | Yrd Mat Sub Rec Scr Slots Evolved 6 | 4 1 1 . . Power . | . . . . . Propulsion 1 | 1 . . . . Utility 3 | 2 1 . . . Weapon 2 | 1 . 1 . . Parts Attached 35 | 6 17 6 . 6 Power 2 | 1 1 . . . Engine 2 | 1 1 . . . Core . | . . . . . Reactor . | . . . . . Propulsion 11 | 2 8 . . 1 Treads . | . . . . . Leg . | . . . . . Wheel 2 | 2 . . . . Hover 7 | . 6 . . 1 Flight 2 | . 2 . . . Utility 11 | 1 6 2 . 2 Device 5 | 1 2 1 . 1 Storage . | . . . . . Processor 1 | . 1 . . . Hackware . | . . . . . Protection 5 | . 3 1 . 1 Artifact . | . . . . . Weapon 11 | 2 2 4 . 3 Energy Gun 4 | 1 . 2 . 1 Energy Cannon 1 | . . 1 . . Ballistic Gun 4 | 1 . 1 . 2 Ballistic Cannon 1 | . 1 . . . Launcher 1 | . 1 . . . Special Weapon . | . . . . . Impact Weapon . | . . . . . Slashing Weapon . | . . . . . Piercing Weapon . | . . . . . Special Melee Weapon . | . . . . . Unidentified Prototypes . | . . . . . Parts Lost 5 | . . . . 5 Power . | . . . . . Propulsion 3 | . . . . 3 Utility 2 | . . . . 2 Weapon . | . . . . . Highest Loss Streak 1 | . . . . 1 To Critical Strikes . | . . . . . Average Backups . | . . . . . Power . | . . . . . Propulsion . | . . . . . Utility . | . . . . . Weapon . | . . . . . Tool/Special . | . . . . . Unused Backups . | . . . . . Power . | . . . . . Propulsion . | . . . . . Utility . | . . . . . Weapon . | . . . . . Tool/Special . | . . . . . Average Slot Usage (%) 80 | . 99 83 69 63 Engine 8 | . 11 9 7 7 Wheel 1 | . 6 . . . Hover 13 | . 7 18 15 10 Flight 2 | . 8 . . . Device 18 | . 29 12 15 17 Protection 9 | . 8 15 7 4 Energy Gun 9 | . 7 15 7 4 Energy Cannon 5 | . . 8 7 3 Ballistic Gun 4 | . . . 7 13 Launcher 3 | . 10 2 . . Peak Build Rating 35 | 6 13 30 30 35 Average Rating 21 | 5 10 23 30 31 On Entrance 15 | . 6 13 30 30 Naked Turns . | . . . . . Heaviest Build 49 | 8 25 49 49 49 Greatest Support 30 | 30 30 24 24 29 Greatest Overweight (x) 2 | . 1 2 2 2 Average Overweight (x) 1 | . . 1 2 1 Largest Inventory Capacity . | . . . . . Average Capacity . | . . . . . Most Carried . | . . . . . Average Carried . | . . . . . Final Capacity . | . . . . . Final Carried . | . . . . . Class Distribution -------------------- 53% | Tank 31% | Mutant 6% | Bomber 5% | Gunner Dominant Class ---------------- Mutant | -10/Materials Tank | -10/Subcaves Tank | -8/Recycling Tank | -8/Scraptown Resources | -11 -10 -10 -8 -8 ----------- Run | Yrd Mat Sub Rec Scr Matter Collected 2818 | 314 780 308 121 1295 Remotely . | . . . . . Salvage Created 5486 | 152 413 228 765 3928 Parts 292 | 12 44 26 28 182 Haulers Intercepted 1 | . 1 . . . Recyclers Shooed 4 | . 2 . 2 . Parts Field Recycled . | . . . . . Retrieved Matter . | . . . . . Parts Self-Destructed 7 | . . 7 . . Prevented . | . . . . . Kills | -11 -10 -10 -8 -8 ------- Run | Yrd Mat Sub Rec Scr Combat Hostiles Destroyed 101 | 1 15 9 2 74 Guns 72 | 1 4 1 1 65 Cannons 13 | . . 6 1 6 AOE 12 | . 10 . . 2 Classes Destroyed 22 | 3 7 2 1 9 Worker 4 | 1 3 . . . Builder 4 | . 3 . 1 . Tunneler 5 | 4 1 . . . Hauler 1 | . 1 . . . Recycler 10 | . 1 . 9 . Mechanic 1 | . 1 . . . Operator 1 | . 1 . . . Watcher 3 | . 3 . . . Swarmer 3 | . 3 . . . Grunt 13 | 1 12 . . . Sentry 2 | . . . 2 . Artisan 1 | . . 1 . . Subdweller 9 | . . 9 . . Bolteater 1 | . . . . 1 Federalist 12 | . . . . 12 Explorer 4 | . . . . 4 Ranger 2 | . . . . 2 Guru 6 | . . . . 6 Scrapper 43 | . . . . 43 Tinkerer 1 | . . . . 1 Thug 2 | . . . . 2 Savage 3 | . . . . 3 Mutant 1 | . . . . 1 Best Kill Streak 21 | 5 8 4 4 21 Combat Bots Only 21 | 1 4 4 1 21 Max Kills in Single Turn 3 | 1 2 1 3 3 Gunslinging 2 | . . . . 2 Exploded 2 | . 1 . . 2 Melee . | . . . . . Uniques/NPCs Destroyed . | . . . . . Combat | -11 -10 -10 -8 -8 -------- Run | Yrd Mat Sub Rec Scr Hostile Shots Fired 508 | 13 69 49 10 367 Missed 130 | 4 15 15 1 95 Hits 378 | 9 54 34 9 272 Projectile 378 | 9 54 34 9 272 Critical Strikes 16 | . 4 . . 12 Damage Taken 5416 | 101 727 598 241 3749 Core 3847 | 85 535 325 125 2777 Absorbed by Shields . | . . . . . Redirected to Core 3187 | 52 414 266 125 2330 Ignored by Resistances 634 | . . 16 9 609 Regen/Repaired (Parts) 3 | . . . . 3 Core Remaining (%) 85 | 85 . . . . Volleys Fired 371 | 18 106 39 41 167 Largest 3 | 2 2 3 3 3 Hottest 190 | 70 80 190 173 173 Shots Fired 861 | 36 174 97 123 431 Gun 685 | 36 94 58 82 415 Cannon 107 | . 12 38 41 16 Launcher 69 | . 68 1 . . Special . | . . . . . Kinetic 455 | 18 12 . 41 384 Thermal 280 | 18 94 88 41 39 Explosive 69 | . 68 1 . . Electromagnetic 57 | . . 8 41 8 Robot Hit Streak 20 | 7 9 14 16 20 Robot Miss Streak 7 | 3 7 1 1 4 Penetration Max 1 | . . . . 1 Secondary Targets 25 | . . . . 25 Max Gunslinging Chain 2 | . . . . 2 Shots Hit Robots 465 | 19 56 38 22 330 Core Hits 214 | 7 50 11 20 126 Critical Kills 6 | . . 2 . 4 Critical Parts Destroyed 3 | . . . . 3 Critical Strikes 17 | 1 6 3 . 7 Burn 8 | 1 6 1 . . Meltdown 3 | . . 2 . 1 Destroy 6 | . . . . 6 Melee Attacks . | . . . . . Impact . | . . . . . Slashing . | . . . . . Piercing . | . . . . . Sneak Attacks . | . . . . . Combat Hostiles . | . . . . . Follow-up Attacks . | . . . . . Damage Inflicted 11226 | 252 1984 691 691 7608 Guns 8358 | 252 433 288 381 7004 Cannons 1054 | . 85 403 213 353 Explosions 1797 | . 1466 . 80 251 Melee . | . . . . . Ramming 17 | . . . 17 . Kinetic 6694 | 129 85 . 118 6362 Thermal 2571 | 123 467 691 213 1077 Explosive 1512 | . 1432 . 80 . Electromagnetic 432 | . . . 263 169 Impact . | . . . . . Slashing . | . . . . . Piercing . | . . . . . Highest Corruption 9 | . . . 2 9 Average Corruption 5 | . . . 2 6 Corruption Purged . | . . . . . Corruption Blocked . | . . . . . Effects 13 | . . . 1 12 Message Errors 2 | . . . . 2 Matter Fused 2 | . . . . 2 Heat Flow Errors 3 | . . . . 3 Energy Discharges 3 | . . . 1 2 Data Loss (minor) 1 | . . . . 1 Data Loss (major) 1 | . . . . 1 Weapon Failures 1 | . . . . 1 Overload Shots . | . . . . . Overflow Damage 32 | . 19 . . 13 Projectiles 13 | . . . . 13 Explosions 19 | . 19 . . . Melee . | . . . . . Knockbacks 2 | . 2 . . . Impact . | . . . . . Kinetic 2 | . 2 . . . Secondary . | . . . . . Self-Inflicted Damage 236 | . 84 40 112 . Shots 10 | . 7 1 2 . Rammed 1 | . . . 1 . Targets Rammed 1 | . . . 1 . Kicked . | . . . . . Crushed . | . . . . . Highest Temperature 404 | 201 392 84 228 404 Average Temperature 84 | 107 88 26 62 98 Received Heat Transfer 2822 | 54 378 93 36 2261 Effects 4 | . 2 . . 2 Shutdowns 3 | . 2 . . 1 Interference 1 | . . . . 1 Siege Activations . | . . . . . Martial Activations . | . . . . . Shielding Activations . | . . . . . Robots Disrupted . | . . . . . Combat Hostiles . | . . . . . Robots Corrupted . | . . . . . Combat Hostiles . | . . . . . Parts Fried 1 | . . . . 1 Impact Corruptions . | . . . . . Robots Melted 4 | . 1 2 . 1 Combat Hostiles 4 | . 1 2 . 1 Parts Melted 33 | 2 1 4 . 26 Heat Transferred 5436 | 444 1789 1406 296 1501 Parts Sabotaged . | . . . . . Parts Stolen . | . . . . . Parts Stripped . | . . . . . Power Chain Reactions 3 | . . . 1 2 Alert | -11 -10 -10 -8 -8 ------- Run | Yrd Mat Sub Rec Scr Maximum Alert Level 2 | . 2 . . . Low Security (%) 56 | 100 12 . 100 . Level 1 31 | . 62 . . . Level 2 12 | . 24 . . . Level 3 . | . . . . . Level 4 . | . . . . . Level 5 . | . . . . . High Security . | . . . . . Max Security . | . . . . . Peak Influence 579 | 31 579 . 108 . Initial . | . . . . . Average 178 | 2 326 . 35 . Influence Increases 1861 | 46 1332 . 483 . Destroy 0b10 Robot/C 360 | 20 300 . 40 . Destroy 0b10 Robot/NC 145 | 25 70 . 50 . Destroy Leader 98 | . 98 . . . Successful Hack 67 | . 33 . 34 . Disable Machine 765 | . 435 . 330 . Destroy Structure 396 | 1 366 . 29 . Partial Spotted 15 | . 15 . . . Lose Combat Pursuer 15 | . 15 . . . Influence Decreases 1861 | 46 762 570 483 . Entered New Map 274 | . . 274 . . Time Decay 1425 | 46 612 296 471 . Purge Threat 162 | . 150 . 12 . Squads Dispatched 5 | . 5 . . . Investigation 4 | . 4 . . . Extermination . | . . . . . Reinforcement 1 | . 1 . . . Assault . | . . . . . Garrison . | . . . . . Intercept . | . . . . . Searches Triggered . | . . . . . Construction Impeded . | . . . . . Haulers Reinforced . | . . . . . Active Scanning Responses . | . . . . . Cargo Convoy Interrupts . | . . . . . Stealth | -11 -10 -10 -8 -8 --------- Run | Yrd Mat Sub Rec Scr Distress Signals 2 | . 2 . . . Communications Jammed . | . . . . . Distress Signals . | . . . . . Times Spotted 172 | 1 24 17 2 128 Peak Tracking Total 9 | 1 4 4 1 9 Tactical Retreats 9 | . 4 2 . 3 Traps | -11 -10 -10 -8 -8 ------- Run | Yrd Mat Sub Rec Scr Traps Triggered 6 | . 5 1 . . Indirectly . | . . . . . Trap Hack Attempts . | . . . . . Triggered . | . . . . . Disarmed . | . . . . . Reprogrammed . | . . . . . Reused . | . . . . . Traps Extracted . | . . . . . Installed . | . . . . . Triggered . | . . . . . Machines | -11 -10 -10 -8 -8 ---------- Run | Yrd Mat Sub Rec Scr Machines Disabled 53 | . 30 1 22 . Max in Single Turn 3 | . 3 1 1 . Machines Repaired . | . . . . . Machines Dismantled . | . . . . . Machines Sabotaged . | . . . . . Overloaded Fab Kills . | . . . . . Hacking | -11 -10 -10 -8 -8 --------- Run | Yrd Mat Sub Rec Scr Machines Accessed 20 | . 7 1 6 6 Terminals 13 | . 7 . 6 . Fabricators . | . . . . . Repair Stations . | . . . . . Recycling Units . | . . . . . Scanalyzers . | . . . . . Garrison Access . | . . . . . Total Hacks 105 | . 23 9 26 47 Successful 81 | . 14 9 11 47 Failed 24 | . 9 . 15 . Catastrophic 5 | . 2 . 3 . Database Lockouts . | . . . . . Manual . | . . . . . Terminals 49 | . 23 . 26 . Fabricators . | . . . . . Repair Stations . | . . . . . Recycling Units . | . . . . . Scanalyzers . | . . . . . Garrison Access . | . . . . . Terminal Hacks 81 | . 14 9 11 47 Record 61 | . 5 8 1 47 Part Schematic 1 | . . . 1 . Prototype ID Bank 3 | . 1 . 2 . Branch Access Points 2 | . 1 . 1 . Recycling Unit Index 1 | . . . 1 . Unreport Threat 3 | . 1 . 2 . Locate Traps 1 | . 1 . . . Maintenance Status 1 | . 1 . . . Hauler Manifests 3 | . 3 . . . Registered Components 1 | . . . 1 . Zone Layout 3 | . 1 . 2 . Proto ID Catalog 1 | . . 1 . . Fabricator Hacks . | . . . . . Repair Station Hacks . | . . . . . Recycling Unit Hacks . | . . . . . Scanalyzer . | . . . . . Garrison Access Hacks . | . . . . . Unauthorized Hacks . | . . . . . Terminals . | . . . . . Fabricators . | . . . . . Repair Stations . | . . . . . Recycling Units . | . . . . . Scanalyzers . | . . . . . Garrison Access . | . . . . . Data Cores Recovered . | . . . . . Used . | . . . . . Hacking Detections 11 | . 6 . 5 . Full Trace Events 4 | . 3 . 1 . Feedback Events . | . . . . . Feedback Blocked . | . . . . . Robot Schematics Acquired . | . . . . . Robots Built . | . . . . . Authchips . | . . . . . Time . | . . . . . Total Robot Build Rating . | . . . . . Part Schematics Acquired 1 | . . . 1 . Parts Built . | . . . . . Authchips . | . . . . . Time . | . . . . . Total Part Build Rating . | . . . . . Parts Repaired . | . . . . . Time . | . . . . . Parts Recycled . | . . . . . Recycled Matter . | . . . . . Retrieved Matter . | . . . . . Retrieved Components . | . . . . . Parts Scanalyzed . | . . . . . Part Schematics Acquired . | . . . . . Parts Damaged . | . . . . . Bothacking | -11 -10 -10 -8 -8 ------------ Run | Yrd Mat Sub Rec Scr Used RIF Installer . | . . . . . Robots Hacked . | . . . . . Non-combat . | . . . . . Combat . | . . . . . Robot Hacks Applied . | . . . . . Relay Couplers Released . | . . . . . Fabnet Peak Effective % . | . . . . . Robots Rewired . | . . . . . Allies Hacked . | . . . . . Hacks Repelled . | . . . . . Allies | -11 -10 -10 -8 -8 -------- Run | Yrd Mat Sub Rec Scr Total Allies . | . . . . . Largest Group . | . . . . . Highest-Rated Group . | . . . . . Highest-Rated Ally . | . . . . . Total Orders . | . . . . . Ally Attacks . | . . . . . Total Damage . | . . . . . Kills . | . . . . . Allies Corrupted . | . . . . . Allies Melted 13 | . . . . 13 Intel | -11 -10 -10 -8 -8 ------- Run | Yrd Mat Sub Rec Scr Active Infowar (turns) 7896 | 330 2100 2582 1599 1285 Sensors 2137 | . 2059 78 . . Seismic 2508 | 330 2100 78 . . ECM 6855 | . 1389 2582 1599 1285 Robot Analysis Total . | . . . . . Derelict Logs Recovered 2 | . . 2 . . Drone Launches . | . . . . . Drone Recoveries . | . . . . . Exploration | -11 -10 -10 -8 -8 ------------- Run | Yrd Mat Sub Rec Scr Turns Passed 8302 | 475 2100 2582 1599 1546 Spaces Moved 4979 | 132 1610 1760 810 667 Core 114 | 15 1 . . 98 Treads . | . . . . . Legs . | . . . . . Wheels 609 | 117 492 . . . Hover 3775 | . 636 1760 810 569 Flight 481 | . 481 . . . Fastest Speed 37 | 50 37 56 176 56 Average Speed 123 | 76 92 126 176 138 Slowest Speed 176 | 80 120 176 176 176 Overloaded Moves . | . . . . . Propulsion Burnouts . | . . . . . Robots Hopped . | . . . . . Potential Cave-ins . | . . . . . Cave-ins Triggered . | . . . . . Exploration Rate (%) 66 | 6 99 80 99 50 Regions Visited 4 Branch Regions 3 Pre-discovered Areas 1 | . . 1 . . Known Exits Taken . | . . . . . Unknown Exits Taken 4 | 1 1 1 1 . Scrap Searched 2 | . . 2 . . Spaces Dug 6 | . 5 . 1 . Terrain Destroyed 498 | . 432 8 30 28 Melee . | . . . . . Projectile 38 | . . 5 13 20 AOE 460 | . 432 3 17 8 Terrain Rammed . | . . . . . Walls Destroyed . | . . . . . Machines Disabled . | . . . . . Actions | -11 -10 -10 -8 -8 --------- Run | Yrd Mat Sub Rec Scr Total 6386 | 466 2045 2028 891 956 Wait 819 | 311 275 191 34 8 Move 4975 | 131 1609 1759 809 667 Hop . | . . . . . Pick Up . | . . . . . Fast Attach 42 | 6 23 7 . 6 Attach . | . . . . . Detach . | . . . . . Swap 5 | . 5 . . . Drop 25 | . 15 7 . 3 Fire 371 | 18 106 39 41 167 Melee . | . . . . . Ram 1 | . . . 1 . Kick . | . . . . . Crush . | . . . . . Escape Stasis . | . . . . . Rewire . | . . . . . Trap . | . . . . . Miscellaneous 148 | . 12 25 6 105 Route ------- -11/Scrapyard -10/Materials (discovered 5 exits: [*Mat x3] / *Min / *Sub) -10/Subcaves (discovered 3 exits: [*Mat x2] / *Rec) -8/Recycling (discovered 2 exits: *Fac / *Scr) -8/Scraptown (discovered 2 exits: Fac x2) History --------- Turn | Location | Event 2 | -11/Scrapyard | Met Revision 17 13 | -11/Scrapyard | Upgraded with Propulsion slot (x1) 13 | -11/Scrapyard | Upgraded with Utility slot (x2) 13 | -11/Scrapyard | Upgraded with Weapon slot (x1) 68 | -11/Scrapyard | Discovered new exit (range 8) 476 | -11/Scrapyard | Entered Materials 477 | -10/Materials | Build established: Mutant 502 | -10/Materials | Discovered new exit (range 12) 538 | -10/Materials | Identified exit to Mines 767 | -10/Materials | Discovered new exit (range 15) 889 | -10/Materials | Reached level 2 899 | -10/Materials | Upgraded with Utility slot (x1) 1132 | -10/Materials | Discovered new exit (range 16) 1306 | -10/Materials | Discovered new exit (range 10) 1475 | -10/Materials | Discovered new exit (range 10) 2138 | -10/Materials | Reached level 3 2255 | -10/Materials | Core integrity fell below 50% 2576 | -10/Materials | Entered Subcaves 2578 | -10/Subcaves | Reached level 4 2579 | -10/Subcaves | Learned location of Storage (-8) 2588 | -10/Subcaves | Shifting Twisted Machinery released Sub. Beam Cannon 2600 | -10/Subcaves | Upgraded with Weapon slot (x1) 2719 | -10/Subcaves | Shifting Twisted Machinery released Sub. Power Source 2735 | -10/Subcaves | Ambushed by swarm of Subdwellers 2913 | -10/Subcaves | Build established: Bomber 2938 | -10/Subcaves | Discovered new exit (range 13) 3110 | -10/Subcaves | Discovered new exit (range 12) 3136 | -10/Subcaves | Disturbed a concealed Subdweller 3320 | -10/Subcaves | Discovered new exit (range 14) 3444 | -10/Subcaves | Build established: Tank 3494 | -10/Subcaves | Ambushed by angry Subdweller bent on revenge 4264 | -10/Subcaves | Learned Materials terminal intel 4269 | -10/Subcaves | Visited 4L-MR0's lab 4290 | -10/Subcaves | Found Power Bank 4291 | -10/Subcaves | Attached Power Bank, gained temporary slots: Power x3 4475 | -10/Subcaves | Shifting Twisted Machinery released Humpback 4491 | -10/Subcaves | Shifting Twisted Machinery released Mak. Light Armor Plating 5158 | -10/Subcaves | Entered Recycling 5159 | -8/Recycling | Met a Zionite searching for Scraptown 5160 | -8/Recycling | Reached level 5 5574 | -8/Recycling | Reached level 6 5650 | -8/Recycling | Discovered new exit (range 17) 6066 | -8/Recycling | Scanned before Scraplab entrance 6740 | -8/Recycling | Entered Scraplab 6754 | -8/Recycling | Discovered new exit (range 3) 6757 | -8/Recycling | Entered Scraptown 6757 | -8/Scraptown | System corruption cleaned by C-Scrubber 7014 | -8/Scraptown | Visited UFD Registry 7014 | -8/Scraptown | Registered with UFD as "Metallauncher" 7146 | -8/Scraptown | Met Optimus 7146 | -8/Scraptown | Reached level 7 7146 | -8/Scraptown | Accepted into 0bPrime 7247 | -8/Scraptown | Visited Supply Room 7280 | -8/Scraptown | Visited Curators Association 7302 | -8/Scraptown | Civil war broke out across Scraptown 7376 | -8/Scraptown | Identified exit to Factory 7399 | -8/Scraptown | Lost 7 allies 7521 | -8/Scraptown | Lost 6 allies 7610 | -8/Scraptown | Found Scrap Suit 7624 | -8/Scraptown | Core integrity fell below 20% 7763 | -8/Scraptown | Destroyed 9 combat bots 7856 | -8/Scraptown | Lost 23 allies 7899 | -8/Scraptown | Build established: Gunner 8002 | -8/Scraptown | Lost 5 allies 8046 | -8/Scraptown | Destroyed 10 combat bots 8055 | -8/Scraptown | Entered Cyclist Reading Room 8268 | -8/Scraptown | Destroyed 21 combat bots 8303 | -8/Scraptown | Destroyed by BT-218(j) with Overtuned Pulse Rifle Last Messages --------------- Titanium Leg. 08291_ Slug penetrates BT-218(j). 08292_ Acquired 10 matter. 08294_ System corrupted: Heat flow error (+236). 08294_ Slug penetrates BT-218(j). 08295_ Acquired 10 matter. 08297_ Slug penetrates Wall. 08298_ Acquired 10 matter. 08298_ Critical hit (Burn: +50). 08300_ P3-QC1(j) cannibalizes Ovr. Titanium Leg to repair Ovr. Titanium Leg. 08300_ Slug penetrates P3-QC1(j). 08301_ Acquired 10 matter. 08301_ BT-218(j) cannibalizes Ovr. Titanium Leg to repair Ovr. Titanium Leg. 08303_ BT-218(j) heat short circuits Scrap Suit. 08303_ 67-OGE(j) cannibalizes Ovr. Pulse Rifle to repair Ovr. Pulse Rifle. [Achievement: First Step to Greatness] [Achievement: 5k Club] Map ----- +----------------------------------------------------+ | ?????????????????????????????????????????????????? | | ?????????????????????????????????????????????????? | | ?????????????????????????????????????????????????? | | ?????????????????????????????????????????????????? | | ?????????????????????????????????????????????????? | | ??????????????????????????????#==!#??????????????? | | ?????????????????????????????#%!%[=??????????????? | | ?????????????????????????????%%%!%!??????????????? | | ?????????????????????????????!=%!=!??????????????? | | ??????????????????????????????%!/%[??????????????? | | ?????????????????? ???????????%=! ??????????????? | | ?? ????????????? ???????????==!=#??????????????? | | ?? ????????????? ??????##???"!=[###????????????? | | ?? ????????????? ???????%!??"!!![""????????????? | | ??# ????????????? ?????###=###=[% %?????????????? | | ??# ????????????? ?????#""%["[==[!=?????????????? | | ??# ????????????? ?????#"%="""==="??????????????? | | ??# ??????????### ###??#"=*!%%=*["??????????????? | | ??# #???????""""" """""#!!!!=! =%#??????????????? | | ??# #???????? " " ?#"[="!"*=!#??????????????? | | ??# #?????????" "??#"[! ["%!%#??????????????? | | ??# #?????????? " " ????""""""=!*#??????????????? | | ??# #???????????" "?????######=*!#??????????????? | | ?## ##??????????# #??????????#=!%#?#??########??? | | ?# ############!############=! ### ?# #/]#?## | | ?# !!%![%[%=!==%=*!@*%*%j =*[## # # [#?# | | ?# %=[ j=*[!=!!*!%/!!!!j%*=### # # #?#X | | ?# #######![##=##=##########!=%#?# =!* %#?#" | | ?## ##??????????????????????#!!==### !==![=### | | ### ########???????????????###!=="######=*=!#%#!# | | """ """""""#??????????????##*=!!!!=![%!*=!%=%[![= | | """ " "#?????##########==!!![[!*=!%!%*!=!!==[ | | """ !* "#?????# !%"[[/=!!*%=*!%!![=!&%%! | | " " *= "#?????# ![*!!!%!%=%!/==[=%*[!!!= | | " ! "#?????# %% %=#%=&===!%!==[=[ !=%!=! | | " " [! "#?????# [%!=%#!=====##%!%!#####*##= | | """ " =[= "#?????# =%= "!![%!##="[%[!==""#### | | ### " [!= "#?????# [ "!%![!##"="!*!*"""???# | | ### " "#?????# %* " ==%[##"""!=[= ""#??# | | """ """" ""#?????# = # ==%##"" =" "#??# | | " " #### ###?????# # ##"" "#??# | | " #### ###?????#########?# ##" " ""#??# | | " """" ""#???????????????# #?" " " "#??? | | " "#???????????????# = #?"" """"" "???? | | " " "" "#???????????????#=!! #?"" " ""#??? | | " " "" "#???????????????#[! #?""""""""""#??? | | " " "#?????????##????#!!!= #??##??????????? | | " ""#?????????%%!???#![%% #??????????????? | | " " """""#??????????"*!??#%=!==#???????????#### | | " """""""#??????????"" #=*!/!#???????????# # | +----------------------------------------------------+ Best States ------------- Heat Dissipation 49 Energy Generation 17 Energy Capacity 265 Matter Stores 300 Matter Capacity 300 Sight Range 17 Robot Scan Range 14 Terrain Scan Density 10 ECM Strength 1 Armor Coverage 950 Resistance: TH 15 Evasion (%) 53 Offensive Hacking 10 Defensive Hacking 5 Item Schematics ----------------- Lgt. Angular Momentum Engine | -8/Recycling | Hacked Robot Schematics ------------------ None Fabricated ------------ Nothing Repaired ---------- Nothing Alien Tech Used ----------------- None Achievements -------------- 5k Club Crack Shot Everything Is Under Control First Step to Greatness Gunslinger It's Just You Killing Spree Librarian Loot Pinata Novice Programmer One Hack Too Far Please Form A Line Remodeling Shopping List Storm Trooper Tourist Uninvited Guest Challenges ------------ None RPGLIKE | -11 -10 -10 -8 -8 --------- Run | Yrd Mat Sub Rec Scr Levels Raised 6 | . 2 1 2 1 XP Earned 12146 | 3100 4186 1000 2960 900 XP Spent 11955 | 3000 2920 1450 3100 1485 Upgrades 33 | 6 10 3 6 8 Propulsion Slot 1 | 1 . . . . Utility Slot 3 | 2 1 . . . Weapon Slot 2 | 1 . 1 . . Core Integrity 7 | . . . . 7 Heat Dissipation 4 | . 4 . . . Energy Generation 1 | . 1 . . . Mass Support 3 | 2 . . . 1 Sight Range 1 | . . . 1 . Ranged Accuracy 5 | . 1 1 3 . Hack Attack % 2 | . 2 . . . Hack Defense % 1 | . 1 . . . TH Resistance % 3 | . . 1 2 . Protomatter Created 1484 | . 137 132 47 1168 Integrity Restored 3225 | . 273 444 141 2367 Core 2897 | . 273 444 141 2039 Parts 328 | . . . . 328 Protomatter Decayed 12432 | . 12 150 . 12270 Game ------ Seed NuclearTerrabombBay Manual? 0 Play Time 01:40:04 Cumulative 1.6 hours Start 2025.05.12 @ 14:50:44 End 2025.05.21 @ 11:25:38 Sessions 6 Manual Loads 0 Difficulty Rogue Special Mode Winter2019/RPGLIKE Game No. 1 Rogue 1 Adventurer 0 Explorer 0 Win Type - Total 0 Types 0/0/0/0/0/0/0/0/0/0 Lore% 6 Gallery% 2 Achievement% 7 Wizard Run 0 Options --------- Layout 0 ASCII 0 Keyboard 0 Movement Mouse Keybinds 0 Fullscreen 1 Font 14/SmallcapsGlow Map View 36x27 Zoom Use 96% Tactical HUD 1 Map Filters NONE Filters NONE Steam 0 RUN: 2a7f316d-bc80-4ad4-a62c-012d931deaf3